bitfinex/quotes_SOLUSD_20240822
["timestamp","ask_amount","ask_price","bid_price","bid_amount"]
[1724297092060,13.42,141.85,141.83,7.0506]
[1724297092473,7.0487,141.87,141.83,7.0506]
[1724297092773,13.42,141.85,141.83,7.0506]
[1724297093741,13.42,141.85,141.82,7.30208]
[1724297093945,13.42,141.85,141.83,7.0502]
[1724297094147,13.42,141.85,141.84,0.25098]
[1724297094354,13.42,141.85,141.84,0.12549]
[1724297094554,13.42,141.85,141.83,7.0502]
[1724297095581,13.42,141.85,141.84,0.25098]
[1724297097368,7.0488,141.87,141.84,0.25098]
[1724297097577,13.42,141.86,141.84,0.25098]
[1724297098069,13.42,141.86,141.84,7.30108]
[1724297098373,13.42,141.87,141.84,7.30108]
[1724297101186,13.42,141.85,141.76,30.0788]
[1724297101366,13.42,141.85,141.77,20.0]
[1724297101873,13.42,141.81,141.77,20.0]
[1724297102080,13.42,141.81,141.79,7.0526]
[1724297102596,13.42,141.82,141.8,7.0518]
[1724297103463,13.42,141.82,141.81,0.25098]
[1724297104573,13.42,141.82,141.8,0.25098]
[1724297108090,13.42,141.83,141.8,7.30308]
[1724297109713,13.42,141.83,141.8,0.25098]
[1724297109867,13.42,141.81,141.8,0.25098]
[1724297110415,13.4071,141.86,141.8,0.25098]
[1724297110580,13.42,141.83,141.81,7.0512]
[1724297110782,13.42,141.83,141.82,7.17659]
[1724297111182,13.42,141.83,141.82,7.30208]
[1724297112197,13.42,141.85,141.82,7.30208]
[1724297112508,13.42,141.85,141.83,7.30158]
[1724297114092,13.42,141.85,141.83,0.25098]
[1724297114700,13.42,141.85,141.81,7.0516]
[1724297114902,13.42,141.83,141.81,7.0516]
[1724297117542,13.42,141.83,141.82,7.0511]
[1724297117832,13.42,141.83,141.82,7.17659]
[1724297118033,13.42,141.83,141.82,7.30208]
[1724297119133,7.0487,141.87,141.82,7.30208]
[1724297119319,13.42,141.84,141.83,0.12549]
[1724297121997,13.42,141.84,141.81,7.0515]
[1724297122216,13.42,141.82,141.81,7.0515]
[1724297124705,13.42,141.84,141.81,7.30248]
[1724297125020,13.42,141.84,141.82,0.12549]
[1724297125441,13.42,141.84,141.82,7.30198]
[1724297127013,13.42,141.86,141.83,7.0506]
[1724297127339,13.42,141.86,141.84,0.12549]
[1724297128736,7.0483,141.88,141.84,0.12549]
[1724297129039,13.42,141.86,141.84,0.12549]
[1724297129430,13.42,141.86,141.84,0.25098]
[1724297130757,22.8455,141.89,141.84,0.25098]
[1724297130943,13.42,141.88,141.85,7.0493]
[1724297131255,13.42,141.88,141.86,0.25098]
[1724297139870,13.42,141.87,141.79,6.279]
[1724297140033,13.42,141.83,141.82,7.051]
[1724297141141,13.42,141.83,141.82,7.30198]
[1724297143543,13.42,141.83,141.77,16.4865]
[1724297143734,13.42,141.81,141.8,7.052]
[1724297144889,13.42,141.81,141.8,7.30298]
[1724297155990,7.0493,141.86,141.81,7.0514]
[1724297156156,13.42,141.83,141.81,7.0514]
[1724297158683,13.42,141.84,141.82,7.30208]
[1724297162396,13.42,141.84,141.82,7.17659]
[1724297165301,30.21995134,141.89,141.85,7.0492]
[1724297165609,36.2655,141.89,141.86,0.25098]
[1724297166804,36.2655,141.89,141.86,7.30008]
[1724297166984,6.1161,141.92,141.86,0.25098]
[1724297167193,13.42,141.92,141.86,0.25098]
[1724297167494,13.42,141.92,141.85,1.66056968]
[1724297167692,13.42,141.92,141.86,1.40958873]
[1724297167892,13.42,141.92,141.87,0.25098]
[1724297168092,23.5801,141.94,141.87,0.25098]
[1724297168291,13.42,141.92,141.87,0.25098]
[1724297168804,13.42,141.92,141.89,7.0476]
[1724297171008,13.42,141.92,141.88,7.0482]
[1724297171181,13.42,141.92,141.89,0.25098]
[1724297171385,13.42,141.9,141.89,0.25098]
[1724297172290,16.5349,141.94,141.89,0.25098]
[1724297172291,13.42,141.92,141.89,0.25098]
[1724297172978,16.5349,141.94,141.89,0.25098]
[1724297173178,13.42,141.92,141.89,0.25098]
[1724297173797,13.42,141.92,141.9,7.0471]
[1724297174005,13.42,141.92,141.91,0.12549]
[1724297175805,13.42,141.92,141.9,7.0471]
[1724297176213,13.42,141.92,141.89,7.17309]
[1724297176421,13.42,141.9,141.89,7.17309]
[1724297176644,13.42,141.9,141.89,7.29858]
[1724297177818,13.42,141.92,141.9,7.0472]
[1724297178636,13.42,141.92,141.91,0.12549]
[1724297180825,13.42,141.92,141.89,7.17309]
[1724297181911,13.42,141.92,141.9,7.047]
[1724297182113,13.42,141.92,141.91,0.12549]
[1724297182444,13.1609,141.95,141.91,0.12549]
[1724297182612,13.42,141.92,141.91,0.12549]
[1724297183538,13.42,141.92,141.9,0.12549]
[1724297183838,13.42,141.92,141.9,7.17259]
[1724297184735,13.42,141.93,141.91,7.0467]
[1724297185732,13.42,141.93,141.9,7.17259]
[1724297187545,6.1161,141.95,141.91,7.0465]
[1724297187719,13.42,141.93,141.92,7.0462]
[1724297187921,13.42,141.95,141.93,0.12549]
[1724297188217,13.42,141.95,141.93,0.25098]
[1724297188817,13.42,141.95,141.93,0.12549]
[1724297189027,13.42,141.95,141.92,0.12549]
[1724297189224,13.42,141.93,141.92,0.25098]
[1724297192626,13.42,141.93,141.91,7.0465]
[1724297193039,21.4755,141.9,141.75,15.7568]
[1724297193228,6.373,141.82,141.69,24.04802149]
[1724297193449,13.42,141.73,141.71,7.0561]
[1724297193624,7.0537,141.77,141.7,7.0571]
[1724297194026,11.39085762,141.77,141.7,7.0571]
[1724297194240,11.39085762,141.77,141.71,7.0566]
[1724297194241,8.67105324,141.76,141.71,7.0566]
[1724297194746,13.42,141.73,141.71,7.0566]
[1724297195248,53.68,141.75,141.68,7.0581]
[1724297195471,13.42,141.72,141.68,7.0581]
[1724297196025,13.42,141.72,141.69,7.0576]
[1724297196227,13.42,141.72,141.7,7.0571]
[1724297196534,7.0536,141.78,141.72,7.056]
[1724297196732,33.51,141.77,141.72,7.056]
[1724297197143,7.0525,141.8,141.66,1.41113177]
[1724297197346,33.51,141.79,141.73,52.0551]
[1724297197552,33.51,141.79,141.74,0.25098]
[1724297197955,15.1025,141.81,141.75,7.0546]
[1724297198158,48.6125,141.81,141.76,0.25098]
[1724297198456,33.51,141.79,141.76,0.25098]
[1724297198792,33.51,141.77,141.75,0.25098]
[1724297198954,7.0537,141.77,141.71,7.0566]
[1724297199166,33.51,141.72,141.69,7.0573]
[1724297199338,7.0547,141.75,141.69,7.0573]
[1724297199663,33.51,141.72,141.69,7.0573]
[1724297200034,40.5647,141.75,141.69,7.0573]
[1724297200246,33.51,141.72,141.7,7.0571]
[1724297200659,7.37754198,141.77,141.71,0.25098]
[1724297200863,33.51,141.76,141.71,0.25098]
[1724297201971,33.51,141.77,141.72,7.056]
[1724297202157,33.51,141.77,141.73,0.25098]
[1724297203260,40.5636,141.77,141.73,0.25098]
[1724297204372,33.51,141.77,141.73,7.30648]
[1724297204548,33.51,141.77,141.74,7.0551]
[1724297204746,33.51,141.77,141.75,0.25098]
[1724297205547,7.0527,141.79,141.75,0.25098]
[1724297205749,33.51,141.77,141.75,0.25098]
[1724297206352,7.0531,141.78,141.75,0.25098]
[1724297206559,33.51,141.77,141.75,0.25098]
[1724297206755,7.0531,141.78,141.74,0.25098]
[1724297206952,33.51,141.77,141.74,0.25098]
[1724297208476,33.51,141.76,141.74,0.25098]
[1724297208977,7.0527,141.79,141.74,0.25098]
[1724297209173,33.51,141.76,141.74,0.25098]
[1724297210081,33.51,141.76,141.74,7.30598]
[1724297211084,7.0522,141.8,141.74,7.30598]
[1724297211379,33.51,141.82,141.77,7.0536]
[1724297211549,33.51,141.82,141.78,0.25098]
[1724297212480,33.51,141.8,141.78,0.25098]
[1724297212683,7.0521,141.8,141.71,21.8482]
[1724297212973,33.51,141.76,141.74,7.055]
[1724297213145,33.51,141.76,141.75,0.12549]
[1724297214646,33.51,141.76,141.75,0.25098]
[1724297216979,33.51,141.78,141.75,0.25098]
[1724297221783,33.51,141.78,141.76,7.054]
[1724297222184,33.51,141.78,141.75,7.30558]
[1724297227189,33.51,141.76,141.75,7.30558]
[1724297227862,7.0526,141.79,141.75,7.30558]
[1724297228064,33.51,141.76,141.75,7.30558]
[1724297229681,33.51,141.78,141.75,0.25098]
[1724297229880,33.51,141.79,141.77,7.0536]
[1724297230263,33.51,141.79,141.78,0.12549]
[1724297230467,33.51,141.79,141.78,7.17859]
[1724297230692,33.51,141.79,141.78,7.30408]
[1724297232301,33.51,141.79,141.68,15.8046]
[1724297232588,33.51,141.77,141.75,7.0545]
[1724297232986,6.6506,141.8,141.76,7.0541]
[1724297233176,33.51,141.79,141.76,7.0541]
[1724297233495,33.51,141.79,141.77,7.0534]
[1724297233696,33.51,141.79,141.78,0.25098]
[1724297235869,33.51,141.79,141.77,0.25098]
[1724297237292,33.51,141.8,141.77,0.25098]
[1724297238675,33.51,141.82,141.77,0.25098]
[1724297238883,33.51,141.82,141.79,7.0522]
[1724297239194,33.51,141.82,141.8,0.25098]
[1724297239388,40.5605,141.84,141.8,0.25098]
[1724297240196,33.51,141.84,141.8,0.25098]
[1724297240769,40.5602,141.84,141.8,0.25098]
[1724297244093,33.51,141.84,141.8,7.30308]
[1724297245579,33.51,141.86,141.81,7.0516]
[1724297245770,21.3808,141.88,141.82,1.5356702]
[1724297245971,21.3808,141.88,141.83,7.17579]
[1724297246170,21.3808,141.88,141.84,0.12549]
[1724297246399,40.5581,141.89,141.84,7.17559]
[1724297246570,40.5581,141.89,141.85,0.12549]
[1724297247291,33.51,141.89,141.85,7.17509]
[1724297247482,33.51,141.89,141.86,0.12549]
[1724297249905,33.51,141.88,141.86,0.12549]
[1724297250072,33.51,141.88,141.85,0.25098]
[1724297253909,33.51,141.88,141.85,7.30058]
[1724297256713,7.0473,141.9,141.85,7.30058]
[1724297257000,40.5573,141.9,141.85,7.30058]
[1724297258609,33.51,141.88,141.85,7.30058]
[1724297259591,33.51,141.86,141.85,0.12549]
[1724297260477,33.51,141.86,141.78,15.0692]
[1724297260678,5.010772,141.89,141.79,20.0]
[1724297260895,33.51,141.84,141.78,15.0692]
[1724297261787,33.51,141.84,141.81,7.0515]
[1724297262180,33.51,141.84,141.82,0.12549]
[1724297263106,33.51,141.84,141.82,0.25098]
[1724297263603,33.51,141.86,141.82,7.30198]
[1724297271642,40.5593,141.86,141.82,7.30198]
[1724297272124,33.51,141.86,141.82,7.30198]
[1724297273040,7.0483,141.88,141.83,7.0505]
[1724297273339,7.0483,141.88,141.84,0.12549]
[1724297273526,7.0483,141.88,141.84,0.25098]
[1724297273914,7.0483,141.88,141.84,7.30098]
[1724297275622,33.51,141.87,141.84,0.25098]
[1724297279816,33.51,141.87,141.84,7.30098]
[1724297280446,13.38,141.87,141.84,7.30098]
[1724297283443,13.38,141.85,141.84,0.25098]
[1724297283642,13.38,141.85,141.83,7.0506]
[1724297288443,13.38,141.87,141.83,7.0506]
[1724297288650,13.38,141.87,141.84,0.25098]
[1724297292168,13.38,141.85,141.84,0.25098]
[1724297296770,20.4283,141.88,141.84,7.30108]
[1724297297849,5.010772,141.89,141.86,7.0489]
[1724297298041,16.41607181,141.9,141.86,7.0489]
[1724297299350,16.41607181,141.9,141.87,0.25098]
[1724297299757,16.41607181,141.9,141.87,7.29968]
[1724297299974,34.902572,141.92,141.87,7.29968]
[1724297300272,13.38,141.9,141.87,7.29968]
[1724297300643,34.902572,141.92,141.87,7.29968]
[1724297300947,13.38,141.92,141.87,0.25098]
[1724297301670,13.38,141.92,141.88,0.12549]
[1724297301877,13.38,141.92,141.89,7.0476]
[1724297302081,13.38,141.92,141.9,0.25098]
[1724297305267,256.61307605,141.98,141.9,16.93741624]
[1724297305268,0.1595643,141.98,141.9,16.93741624]
[1724297305470,13.38,141.97,141.9,16.93741624]
[1724297305711,13.38,141.97,141.94,7.045]
[1724297305863,13.38,141.97,141.95,0.25098]
[1724297306266,13.38,141.97,141.95,0.12549]
[1724297306568,13.38,141.97,141.93,7.0456]
[1724297306768,13.38,141.95,141.93,7.0456]
[1724297307564,13.38,141.97,141.94,7.29608]
[1724297308175,13.38,141.97,141.94,0.25098]
[1724297308377,13.38,141.95,141.94,0.25098]
[1724297310585,13.38,141.95,141.94,0.12549]
[1724297311096,13.38,141.95,141.94,0.25098]
[1724297311908,7.2028643,141.98,141.94,0.25098]
[1724297311909,13.38,141.97,141.94,7.29618]
[1724297313307,13.38,141.95,141.94,0.25098]
[1724297313511,13.38,141.95,141.93,7.29658]
[1724297315305,13.38,141.95,141.94,7.0452]
[1724297315474,13.38,141.95,141.94,7.29618]
[1724297315675,13.38,141.95,141.94,0.25098]
[1724297320893,13.38,141.95,141.92,7.0461]
[1724297321212,13.38,141.93,141.92,7.0461]
[1724297322200,13.38,141.93,141.92,7.29708]
[1724297322813,53.52,141.96,141.92,7.29708]
[1724297322994,53.52,141.96,141.93,0.25098]
[1724297323357,13.38,141.94,141.93,0.25098]
[1724297323986,13.38,141.94,141.93,7.29668]
[1724297325819,13.38,141.94,141.91,7.0462]
[1724297326013,13.38,141.92,141.91,7.0462]
[1724297326387,13.38,141.92,141.9,7.0472]
[1724297326700,13.38,141.91,141.9,7.0472]
[1724297327990,13.38,141.91,141.9,7.29818]
[1724297328617,7.0447,141.95,141.9,7.29818]
[1724297328814,7.0447,141.95,141.91,0.25098]
[1724297328815,13.38,141.92,141.91,0.25098]
[1724297333242,13.38,141.92,141.9,7.0472]
[1724297334726,13.38,141.92,141.84,6.0538]
[1724297334909,13.38,141.88,141.85,20.0]
[1724297335102,13.38,141.88,141.84,6.0538]
[1724297335329,13.38,141.88,141.82,15.1376]
[1724297335492,13.38,141.88,141.83,20.0]
[1724297336000,13.38,141.88,141.87,7.0487]
[1724297336522,13.38,141.88,141.87,7.29968]
[1724297340452,13.38,141.9,141.88,7.0477]
[1724297340628,13.38,141.9,141.89,7.29868]
[1724297342549,7.0453,141.94,141.89,7.29868]
[1724297342752,13.38,141.9,141.89,7.29868]
[1724297363975,13.38,141.92,141.89,0.25098]
[1724297364277,13.38,141.93,141.92,7.0462]
[1724297364479,13.38,141.93,141.92,7.17169]
[1724297364681,13.38,141.93,141.92,0.25098]
[1724297365578,22.466,141.96,141.92,0.25098]
[1724297365806,0.1595643,141.98,141.97,7.0437]
[1724297365988,0.1595643,141.98,141.97,0.25098]
[1724297366168,0.1595643,141.98,141.93,0.12549]
[1724297366347,13.38,141.95,141.94,7.0452]
[1724297366551,13.38,141.95,141.94,7.29618]
[1724297366888,13.38,141.95,141.94,0.25098]
[1724297367058,13.38,141.95,141.94,0.12549]
[1724297367256,13.38,141.95,141.94,7.0452]
[1724297367948,13.38,141.95,141.92,7.0458]
[1724297368175,53.52,141.96,141.88,20.0]
[1724297368176,13.38,141.92,141.88,20.0]
[1724297368477,13.38,141.9,141.89,7.0477]
[1724297369466,13.38,141.9,141.89,7.29868]
[1724297369682,13.38,141.9,141.89,0.25098]
[1724297370399,21.5544,141.95,141.93,7.0456]
[1724297370589,13.38,141.94,141.93,7.0456]
[1724297370798,13.38,141.94,141.93,7.29658]
[1724297372181,13.38,141.94,141.93,0.12549]
[1724297372378,13.38,141.94,141.92,7.0459]
[1724297372713,21.5544,141.95,141.92,7.0459]
[1724297372891,21.5544,141.95,141.93,7.29668]
[1724297373091,13.38,141.94,141.93,7.17119]
[1724297373285,13.38,141.94,141.93,7.29668]
[1724297373899,13.38,141.94,141.93,0.12549]
[1724297374096,13.38,141.94,141.87,15.8406]
[1724297374410,13.38,141.92,141.88,20.25098]
[1724297374708,21.5544,141.95,141.88,20.25098]
[1724297374709,13.38,141.9,141.89,7.0477]
[1724297374909,13.38,141.9,141.89,7.29868]
[1724297375488,13.38,141.9,141.89,7.0477]
[1724297376493,33.45,141.9,141.89,7.0477]
[1724297376998,33.45,141.9,141.89,7.17319]
[1724297378887,33.45,141.9,141.87,7.0482]
[1724297379209,33.45,141.88,141.87,7.0482]
[1724297379409,33.45,141.88,141.87,7.29918]
[1724297382512,33.45,141.88,141.86,7.0491]
[1724297382809,33.45,141.87,141.84,7.0497]
[1724297383917,33.45,141.87,141.85,0.12549]
[1724297385013,22.5419,141.86,141.74,15.4277]
[1724297385189,33.45,141.83,141.74,15.4277]
[1724297386492,33.45,141.83,141.75,65.25098]
[1724297386886,33.45,141.83,141.81,7.0512]
[1724297387118,33.45,141.83,141.82,0.25098]
[1724297391833,33.45,141.83,141.75,20.0]
[1724297393102,33.45,141.83,141.76,0.25098]
[1724297393297,33.45,141.83,141.81,7.0516]
[1724297393491,33.45,141.85,141.82,7.0511]
[1724297393719,33.45,141.85,141.76,46.66151454]
[1724297393720,22.5419,141.86,141.84,7.0501]
[1724297393913,22.5419,141.86,141.85,0.12549]
[1724297394113,22.5419,141.86,141.85,0.25098]
[1724297396195,22.5419,141.86,141.85,0.12549]
[1724297396898,33.45,141.87,141.85,0.12549]
[1724297398520,7.0479,141.89,141.85,0.12549]
[1724297398521,33.45,141.89,141.86,7.17469]
[1724297401423,33.45,141.87,141.85,7.0495]
[1724297402523,33.45,141.89,141.86,7.0492]
[1724297402718,33.45,141.89,141.86,7.17469]
[1724297402925,33.45,141.89,141.86,7.0492]
[1724297403827,33.45,141.89,141.84,0.12549]
[1724297403828,33.45,141.89,141.87,7.29948]
[1724297404028,33.45,141.91,141.87,7.17399]
[1724297405119,33.45,141.91,141.88,0.12549]
[1724297405940,33.45,141.91,141.88,7.17359]
[1724297406748,33.45,141.89,141.87,0.12549]
[1724297406933,33.45,141.89,141.86,7.0487]
[1724297407122,33.45,141.89,141.85,7.0496]
[1724297407327,33.45,141.87,141.85,7.0496]
[1724297407823,33.45,141.89,141.86,7.0492]
[1724297408025,7.047,141.91,141.86,7.0492]
[1724297408247,33.45,141.9,141.86,7.0492]
[1724297408644,33.45,141.9,141.87,0.25098]
[1724297409048,40.4972,141.9,141.87,0.12549]
[1724297409348,40.4972,141.9,141.86,7.0492]
[1724297412348,33.45,141.88,141.86,7.0492]
[1724297412558,33.45,141.88,141.85,0.12549]
[1724297412845,33.45,141.88,141.85,0.25098]
[1724297413258,33.45,141.88,141.85,7.30048]
[1724297413423,33.45,141.9,141.87,7.0487]
[1724297416830,33.45,141.9,141.89,7.0477]
[1724297417161,33.45,141.92,141.89,7.29868]
[1724297417733,33.45,141.92,141.9,7.047]
[1724297418454,39.7936,141.94,141.91,7.0467]
[1724297418762,33.45,141.94,141.92,7.29708]
[1724297419961,33.45,141.94,141.92,0.25098]
[1724297420165,33.45,141.94,141.91,0.25098]
[1724297421458,33.45,141.94,141.91,7.29758]
[1724297425779,33.45,141.94,141.92,7.0457]
[1724297425974,33.45,141.96,141.91,0.25098]
[1724297426568,33.45,141.96,141.91,0.12549]
[1724297426768,33.45,141.96,141.9,1.66023158]
[1724297426975,33.45,141.96,141.94,7.045]
[1724297427162,33.45,141.96,141.93,7.0456]
[1724297429971,33.45,141.96,141.94,7.0451]
[1724297430270,33.45,141.96,141.95,0.12549]
[1724297434470,13.36,141.96,141.95,7.17019]
[1724297434665,13.36,141.96,141.95,7.29568]
[1724297436360,0.1595643,141.98,141.95,0.25098]
[1724297436678,13.5195643,141.98,141.97,7.0437]
[1724297436880,13.5195643,141.98,141.97,7.29468]
[1724297437184,13.5195643,141.98,141.9,20.0]
[1724297437361,13.36,141.95,141.91,45.25098]
[1724297437570,13.36,141.95,141.92,20.0]
[1724297437760,13.36,141.95,141.93,0.25098]
[1724297438461,13.36,141.95,141.94,7.0452]
[1724297438689,13.36,141.95,141.93,7.17109]
[1724297440189,0.1595643,141.98,141.95,7.0446]
[1724297440397,13.36,141.97,141.96,0.25098]
[1724297440686,13.36,141.97,141.96,7.29518]
[1724297441479,0.1595643,141.98,141.96,7.29518]
[1724297441777,13.36,141.97,141.96,7.29518]
[1724297442486,33.5695643,141.98,141.96,7.29518]
[1724297451619,0.1595643,141.98,141.97,7.0437]
[1724297451765,0.1595643,141.98,141.97,7.29468]
[1724297452365,0.1595643,141.98,141.97,52.29468]
[1724297453576,0.1595643,141.98,141.97,7.29468]
[1724297453774,0.1595643,141.98,141.97,7.16919]
[1724297455082,0.1595643,141.98,141.97,7.29468]
[1724297457099,33.5695643,141.98,141.95,7.0443]
[1724297457283,33.5695643,141.98,141.96,7.0441]
[1724297457598,33.5695643,141.98,141.94,7.0447]
[1724297457903,0.1595643,141.98,141.94,7.0447]
[1724297458764,0.1595643,141.98,141.95,7.0447]
[1724297458967,33.41,141.97,141.95,7.0447]
[1724297459198,33.41,141.97,141.96,0.25098]
[1724297462216,33.41,141.97,141.96,7.29518]
[1724297462702,33.41,141.97,141.96,0.25098]
[1724297464093,33.41,141.97,141.95,7.0446]
[1724297464322,33.41,141.97,141.86,16.478]
[1724297464521,33.41,141.94,141.92,7.0458]
[1724297465097,33.41,141.96,141.86,16.478]
[1724297465304,33.41,141.96,141.87,1.40912508]
[1724297465603,33.5695643,141.98,141.88,20.25098]
[1724297465810,0.1595643,141.98,141.9,6.0009]
[1724297466001,0.1595643,141.98,141.91,20.12549]
[1724297466211,0.1595643,141.98,141.97,7.0437]
[1724297466419,0.1595643,141.98,141.97,7.29468]
[1724297480033,0.1595643,141.98,141.97,52.29468]
[1724297483254,0.1595643,141.98,141.97,72.29468]
[1724297483922,0.1595643,141.98,141.97,73.7029083]
[1724297484130,0.1595643,141.98,141.97,72.29468]
[1724297485350,0.1595643,141.98,141.9,22.0235]
[1724297486744,0.1595643,141.98,141.91,45.25098]
[1724297486925,0.1595643,141.98,141.97,7.0437]
[1724297487125,0.1595643,141.98,141.97,7.29468]
[1724297487344,0.1595643,141.98,141.97,0.25098]
[1724297487536,0.1595643,141.98,141.94,7.0447]
[1724297487710,33.38,141.97,141.95,7.0447]
[1724297487914,33.38,141.97,141.96,0.12549]
[1724297488137,33.38,141.97,141.95,7.0447]
[1724297488844,33.38,141.97,141.96,0.12549]
[1724297489142,0.1595643,141.98,141.96,7.16959]
[1724297489925,0.1595643,141.98,141.97,0.12549]
[1724297490246,0.1595643,141.98,141.97,7.16919]
[1724297490643,0.1595643,141.98,141.97,7.29468]
[1724297491143,0.1595643,141.98,141.97,0.25098]
[1724297497838,0.1595643,141.98,141.97,0.12549]
[1724297499055,0.1595643,141.98,141.9,22.0235]
[1724297499254,33.38,141.97,141.91,65.25098]
[1724297499965,33.5395643,141.98,141.95,7.0445]
[1724297500269,33.5395643,141.98,141.96,0.12549]
[1724297502460,13.36,141.97,141.96,0.12549]
[1724297509168,13.36,141.97,141.93,7.0455]
[1724297509355,13.36,141.94,141.93,7.0455]
[1724297509962,13.36,141.96,141.94,7.0448]
[1724297510361,13.36,141.96,141.95,7.0447]
[1724297510561,13.36,141.96,141.95,7.29568]
[1724297512074,13.36,141.96,141.95,0.25098]
[1724297513050,0.1595643,141.98,141.95,0.25098]
[1724297513256,13.36,141.96,141.95,7.29568]
[1724297513764,13.36,141.96,141.95,0.25098]
[1724297514074,13.36,141.96,141.95,7.29568]
[1724297520804,13.36,141.96,141.95,0.25098]
[1724297521206,13.36,141.96,141.95,7.29568]
[1724297522608,13.36,141.96,141.95,0.25098]
[1724297524383,13.36,141.96,141.94,7.045]
[1724297526505,13.36,141.96,141.95,0.12549]
[1724297528417,13.36,141.96,141.94,0.12549]
[1724297528642,13.36,141.96,141.86,23.11502785]
[1724297528643,66.8,141.96,141.86,23.11502785]
[1724297528927,13.36,141.91,141.9,7.0471]
[1724297529099,13.36,141.91,141.88,7.0477]
[1724297529308,13.36,141.89,141.88,7.0477]
[1724297529705,7.0445,141.96,141.9,7.0467]
[1724297529910,13.36,141.93,141.84,41.85236334]
[1724297530207,13.36,141.93,141.84,21.85236334]
[1724297530525,13.36,141.93,141.84,33.36]
[1724297530729,13.36,141.93,141.85,45.25098]
[1724297531050,13.36,141.93,141.91,7.0464]
[1724297531236,13.36,141.93,141.92,0.25098]
[1724297532304,7.0445,141.96,141.9,7.0471]
[1724297532608,13.36,141.92,141.91,0.25098]
[1724297532806,13.36,141.92,141.91,7.29768]
[1724297534927,13.36,141.92,141.91,0.25098]
[1724297535128,13.36,141.92,141.91,7.29768]
[1724297535363,13.36,141.92,141.91,0.25098]
[1724297535651,13.36,141.92,141.9,7.0471]
[1724297536759,13.36,141.92,141.89,0.12549]
[1724297536961,13.36,141.9,141.89,0.12549]
[1724297537134,13.36,141.9,141.89,0.25098]
[1724297537534,13.36,141.9,141.89,7.29868]
[1724297539452,13.36,141.9,141.82,16.0942]
[1724297539657,13.36,141.88,141.87,7.0486]
[1724297540073,13.36,141.88,141.81,7.061]
[1724297540276,13.36,141.86,141.8,7.061]
[1724297541141,13.36,141.86,141.79,13.77003932]
[1724297541345,13.36,141.86,141.79,6.4002]
[1724297541543,28.64,141.86,141.78,16.2507]
[1724297541768,13.36,141.83,141.78,16.2507]
[1724297542649,13.36,141.83,141.82,7.0511]
[1724297542848,15.28,141.86,141.78,16.2507]
[1724297543064,19.5561,141.87,141.85,7.0497]
[1724297543586,13.36,141.89,141.86,0.25098]
[1724297543888,13.36,141.89,141.87,7.0486]
[1724297547877,13.36,141.9,141.86,0.25098]
[1724297548097,13.36,141.9,141.89,7.0477]
[1724297549274,13.36,141.9,141.88,7.0481]
[1724297557892,15.308,141.89,141.86,7.0488]